bitfinex/quotes_ETHUSD_20260202
["timestamp","ask_amount","ask_price","bid_price","bid_amount"]
[1770065724117,1.82736343,2319.1,2317.9,1.07855932]
[1770065724433,1.82736343,2319.1,2317.7,13.85216409]
[1770065724434,1.82736343,2319.1,2317.8,9.53756927]
[1770065724737,1.82736343,2319.1,2317.9,10.61611229]
[1770065724934,1.82736343,2319.1,2317.9,9.53756927]
[1770065725239,9.18925503,2318.9,2317.5,10.59048017]
[1770065725543,1.07819036,2318.7,2317.5,1.0529109]
[1770065725746,1.07819036,2318.7,2317.5,0.001]
[1770065727658,1.07819036,2318.7,2317.5,9.53856927]
[1770065729344,4.31244103,2318.9,2317.5,9.53856927]
[1770065729928,4.31244103,2318.9,2317.6,1.0787021]
[1770065730131,4.31244103,2318.9,2317.6,10.61627137]
[1770065730330,0.60948759,2318.8,2317.7,11.03078939]
[1770065730544,1.78243483,2319.0,2317.7,11.03078939]
[1770065731448,1.78243483,2319.0,2317.7,11.03178939]
[1770065731636,0.0011,2318.6,2317.7,11.03178939]
[1770065732857,0.0011,2318.6,2317.7,12.11044367]
[1770065733426,0.0011,2318.6,2317.7,11.03178939]
[1770065733625,0.0011,2318.6,2317.8,1.2110459]
[1770065734133,0.0011,2318.6,2317.7,0.001]
[1770065735657,2.43041405,2318.5,2317.7,0.001]
[1770065735848,1.07924386,2318.8,2317.8,9.55052012]
[1770065735849,0.0011,2318.8,2317.8,9.55052012]
[1770065736048,9.18925503,2318.9,2318.2,10.61599218]
[1770065736243,9.18925503,2318.9,2318.3,1.49427759]
[1770065736447,1.82736196,2319.1,2318.1,10.61603079]
[1770065736650,1.82735875,2319.1,2318.1,9.53756927]
[1770065737754,1.82735875,2319.1,2318.0,1.07850674]
[1770065738263,14.20798103,2318.8,2317.7,0.001]
[1770065738444,9.18925503,2318.7,2317.7,0.001]
[1770065738643,1.0094255,2318.6,2317.7,0.001]
[1770065739565,0.74935406,2319.1,2318.2,9.53756927]
[1770065739726,1.82736683,2319.1,2318.2,9.53756927]
[1770065740361,1.82736683,2319.1,2317.8,9.53756927]
[1770065740563,1.82736683,2319.1,2317.9,1.07854169]
[1770065742258,0.74935406,2319.1,2318.1,10.61601386]
[1770065742466,0.74935406,2319.1,2318.2,11.03057609]
[1770065742838,1.82736175,2319.1,2318.2,11.03057609]
[1770065743963,0.74935406,2319.1,2318.2,11.03057609]
[1770065744148,0.74935406,2319.1,2318.2,12.10898319]
[1770065744344,0.74935406,2319.1,2318.3,1.21089832]
[1770065744554,0.0011,2318.9,2318.3,1.21089832]
[1770065744948,0.0011,2318.9,2318.3,10.74846759]
[1770065745149,0.0011,2319.1,2318.3,10.74846759]
[1770065746177,0.0011,2319.1,2318.4,10.61589915]
[1770065746465,0.0011,2319.1,2318.5,11.15159327]
[1770065746676,0.0011,2319.1,2318.5,1.614024]
[1770065746831,0.0011,2319.1,2318.3,1.21089832]
[1770065749740,0.0011,2319.1,2318.3,9.54241274]
[1770065754775,0.0011,2319.1,2318.3,10.6207878]
[1770065754942,0.0011,2319.1,2318.3,10.6207882]
[1770065755752,0.0011,2319.1,2318.4,8.39592212]
[1770065756039,0.0011,2319.1,2318.6,8.39592212]
[1770065756464,1.07781849,2319.5,2318.5,1.06851942]
[1770065756465,0.0011,2319.6,2318.7,8.40887297]
[1770065756664,1.07887659,2319.6,2318.7,8.39592212]
[1770065756901,0.0011,2319.6,2318.5,1.06851942]
[1770065757088,10.49000082,2319.6,2318.6,1.05427396]
[1770065757808,0.0011,2318.9,2318.6,1.05427396]
[1770065759886,1.07781849,2319.5,2318.7,8.39592212]
[1770065760221,0.0011,2319.6,2318.9,8.39592212]
[1770065760517,0.0011,2319.6,2319.0,9.23680942]
[1770065762191,8.9640995,2319.6,2318.6,1.05427396]
[1770065762507,8.9629995,2319.4,2318.5,0.001]
[1770065762709,10.11053706,2319.4,2318.5,0.001]
[1770065762899,2.05263756,2319.6,2318.5,8.39692212]
[1770065763407,10.04081799,2319.5,2318.5,0.001]
[1770065763609,1.64047295,2319.4,2318.5,0.001]
[1770065764993,3.13044946,2319.6,2318.5,8.39692212]
[1770065765194,1.9829119,2319.6,2318.5,8.39692212]
[1770065765396,3.13044946,2319.6,2318.5,8.39692212]
[1770065767113,0.9051,2319.6,2318.5,9.47517392]
[1770065767617,1.98288143,2319.6,2318.5,9.47520197]
[1770065767786,1.80226715,2319.6,2318.7,8.39592212]
[1770065768286,2.88004392,2319.6,2318.7,8.39592212]
[1770065768915,2.88004392,2319.6,2318.6,0.9475202]
[1770065769315,4.02758148,2319.6,2318.6,0.9475202]
[1770065769811,4.02758148,2319.6,2318.6,9.34344232]
[1770065769989,4.02758148,2319.6,2318.7,1.04226913]
[1770065770996,4.02758148,2319.6,2318.7,1.04326913]
[1770065771198,0.0011,2319.4,2318.7,9.43919125]
[1770065772419,0.0011,2319.4,2318.8,8.39592212]
[1770065772800,0.0011,2319.6,2319.0,8.39592212]
[1770065772999,0.0011,2319.8,2319.1,9.23680942]
[1770065773698,1.07878572,2319.8,2318.7,10.60122729]
[1770065773902,0.0011,2319.8,2318.8,8.39592212]
[1770065775900,0.0011,2319.8,2318.9,1.07809737]
[1770065776105,0.0011,2319.8,2318.9,9.47401949]
[1770065776313,0.0011,2319.8,2319.2,0.01295085]
[1770065776496,0.32833721,2320.1,2319.3,8.39592212]
[1770065776697,0.32833721,2320.1,2319.4,9.32720942]
[1770065777123,0.0011,2320.6,2319.5,8.40887297]
[1770065777895,0.0011,2320.6,2320.0,9.47350832]
[1770065778295,0.0011,2320.6,2320.0,8.39592212]
[1770065778529,0.0011,2320.6,2319.7,9.47360736]
[1770065778737,0.0011,2320.6,2319.8,2.45611427]
[1770065781426,0.0011,2320.6,2319.9,7.79964697]
[1770065782222,12.36035397,2321.2,2320.5,7.81259782]
[1770065782223,0.0011,2321.2,2320.5,7.81259782]
[1770065782426,0.0011,2321.2,2320.6,1.07730759]
[1770065782603,0.0011,2321.3,2320.7,9.20866629]
[1770065782934,0.0011,2321.5,2320.7,9.20866629]
[1770065783509,0.0011,2321.7,2320.8,7.79964697]
[1770065784106,0.0011,2321.7,2320.7,1.40901932]
[1770065784304,0.0011,2321.6,2320.7,1.40901932]
[1770065784517,0.0011,2321.6,2320.7,1.07725156]
[1770065784834,0.0011,2321.6,2320.7,8.87689853]
[1770065785028,0.0011,2321.6,2320.7,7.79964697]
[1770065785332,0.0011,2321.6,2320.7,8.87689548]
[1770065786549,0.0011,2321.6,2320.9,7.79964697]
[1770065786843,0.0011,2322.0,2321.2,7.79964697]
[1770065787055,0.0011,2322.0,2321.4,7.81259782]
[1770065787219,0.0011,2322.1,2321.4,7.81259782]
[1770065787747,0.0011,2322.1,2321.5,0.904]
[1770065788110,0.0011,2322.1,2321.5,8.70364697]
[1770065788340,0.0011,2322.1,2321.6,0.8703647]
[1770065788531,0.0011,2322.1,2321.5,0.904]
[1770065789409,0.0011,2322.1,2321.1,1.07707367]
[1770065789626,0.0011,2322.1,2320.9,1.0771368]
[1770065790041,0.0011,2322.1,2321.2,1.07702565]
[1770065790242,0.0011,2322.1,2321.3,1.07697778]
[1770065790447,0.0011,2322.1,2321.3,0.53852782]
[1770065791039,0.0011,2322.1,2321.1,7.79964697]
[1770065791244,0.0011,2322.1,2321.0,1.07710855]
[1770065791623,0.0011,2322.1,2321.0,1.07710857]
[1770065793316,0.0011,2322.1,2321.0,8.87675554]
[1770065793850,0.0011,2322.1,2321.0,9.78075554]
[1770065794027,0.0011,2322.1,2321.1,1.4102332]
[1770065794922,0.0011,2322.1,2321.1,10.28695086]
[1770065795646,0.0011,2322.1,2321.1,1.4102332]
[1770065795843,0.0011,2322.1,2320.9,1.07713371]
[1770065796049,8.052233,2322.1,2320.9,1.07713371]
[1770065796213,8.052233,2322.1,2320.7,1.07723465]
[1770065796214,8.052233,2321.9,2320.7,1.07723465]
[1770065796432,8.052233,2321.9,2320.8,1.0771934]
[1770065796976,9.12788379,2321.8,2320.6,0.903]
[1770065797179,1.3435987,2321.7,2320.6,3.38923547]
[1770065797546,1.3435987,2321.7,2320.6,2.31194544]
[1770065798067,9.3947317,2321.7,2320.6,0.903]
[1770065798243,9.3947317,2321.7,2320.3,1.07742933]
[1770065798861,9.12797655,2321.6,2320.2,4.30996099]
[1770065799439,9.12797655,2321.6,2320.3,7.79964697]
[1770065799639,1.07684355,2321.6,2320.3,7.79964697]
[1770065799845,8.72391465,2321.5,2320.4,1.21225588]
[1770065800181,8.72391465,2321.5,2320.2,1.07749331]
[1770065800364,8.72391465,2321.5,2320.2,8.89009113]
[1770065801551,9.80083239,2321.5,2320.2,8.89009113]
[1770065801751,1.74969939,2321.5,2320.2,8.89009113]
[1770065802943,1.7496729,2321.5,2320.2,8.89009113]
[1770065803143,1.7496729,2321.5,2320.3,9.11976398]
[1770065803345,1.7496729,2321.5,2320.4,8.87704741]
[1770065804147,0.67278165,2321.5,2320.5,7.81259782]
[1770065804346,2.42041889,2321.7,2320.5,7.81259782]
[1770065804845,1.3435987,2321.7,2320.8,0.01295085]
[1770065805174,0.0011,2321.9,2320.9,7.79964697]
[1770065805371,0.0011,2321.9,2321.0,1.07712193]
[1770065805550,0.0011,2321.9,2321.0,8.8767689]
[1770065806375,0.0011,2321.9,2320.9,1.07713683]
[1770065806580,0.0011,2321.9,2320.9,1.07715273]
[1770065806760,0.8064333,2321.9,2320.9,1.07715273]
[1770065807557,0.8064333,2321.9,2320.9,8.8767997]
[1770065807778,0.0011,2321.9,2320.9,8.8767997]
[1770065808682,0.0011,2321.8,2321.1,7.81259782]
[1770065808863,0.0011,2321.8,2321.1,7.79964697]
[1770065810386,0.0011,2321.8,2321.1,8.87671276]
[1770065812162,0.0011,2321.8,2321.1,8.88966361]
[1770065812381,0.0011,2321.8,2321.2,2.48711684]
[1770065814193,0.0011,2321.9,2321.3,7.39597084]
[1770065814498,0.0011,2321.9,2321.4,8.47290717]
[1770065815490,0.0011,2321.9,2321.3,1.07697396]
[1770065816701,0.0011,2321.9,2321.3,8.4729448]
[1770065816913,0.0011,2321.9,2321.4,1.42040082]
[1770065817963,0.0011,2321.9,2321.4,8.81637166]
[1770065818165,0.0011,2322.1,2321.5,8.29897084]
[1770065818770,0.0011,2322.1,2321.6,1.07684355]
[1770065819176,0.0011,2322.1,2321.6,8.47281439]
[1770065819474,0.0011,2322.1,2321.7,1.36832549]
[1770065819688,0.0011,2322.3,2321.7,1.36832549]
[1770065819689,0.0011,2322.3,2321.7,8.76429633]
[1770065819996,0.0011,2323.0,2322.1,7.39597084]
[1770065820197,0.0011,2323.0,2322.2,8.29897084]
[1770065820366,0.0011,2323.0,2322.2,0.903]
[1770065820809,0.0011,2323.0,2322.3,8.4724898]
[1770065821094,0.0011,2323.0,2322.4,8.76412741]
[1770065822289,0.0011,2323.1,2322.4,8.76412741]
[1770065822495,0.0011,2323.1,2322.5,8.29897084]
[1770065822903,0.0011,2323.1,2322.6,8.4853016]
[1770065823974,0.92284119,2324.9,2324.7,1.52744386]
[1770065824291,7.60317717,2326.5,2324.7,1.52744386]
[1770065824292,0.01295085,2326.4,2325.9,7.393389]
[1770065824494,0.01295085,2326.4,2325.0,9.6645903]
[1770065824495,0.01295085,2326.2,2326.0,3.84388523]
[1770065824800,0.01295085,2326.2,2325.3,2.29923573]
[1770065824801,7.36419181,2326.8,2325.7,1.14961786]
[1770065825016,0.33434671,2327.4,2325.9,1.16256871]
[1770065825017,0.73641918,2326.7,2325.9,1.16256871]
[1770065825175,7.36419181,2327.2,2326.2,0.01295085]
[1770065825374,7.36419181,2328.1,2326.3,2.06452323]
[1770065825624,8.84590861,2328.0,2326.7,0.01295085]
[1770065825787,8.84590861,2328.0,2326.4,2.07747408]
[1770065825788,7.36419181,2328.0,2326.4,1.16256871]
[1770065826125,7.36419181,2328.0,2325.9,1.14961786]
[1770065826126,1.4817168,2326.3,2325.9,1.14961786]
[1770065826280,7.36419181,2327.0,2326.0,0.91173223]
[1770065826500,0.01295085,2326.1,2325.2,1.14961786]
[1770065826704,0.01295085,2326.1,2325.0,2.22485895]
[1770065826909,1.30997396,2326.3,2325.0,2.22485895]
[1770065826910,1.08764824,2326.3,2325.1,0.91182444]
[1770065827110,8.45184005,2326.3,2325.2,0.91182444]
[1770065827315,8.4388786,2326.3,2325.1,1.0751891]
[1770065827515,7.36419181,2326.3,2325.2,0.91037828]
[1770065827717,7.36419181,2326.3,2325.1,1.0751891]
[1770065828026,0.73641918,2326.2,2325.2,0.91037401]
[1770065828205,0.73641918,2326.2,2325.1,1.08813995]
[1770065828420,0.73641918,2326.2,2325.4,0.01295085]
[1770065828628,8.4387171,2326.7,2325.1,2.23775781]
[1770065828842,8.4387171,2326.7,2325.4,0.01295085]
[1770065829010,8.4387171,2326.7,2325.4,1.07508185]
[1770065829321,8.4387171,2326.7,2325.4,1.07508354]
[1770065829840,7.36419181,2326.7,2325.4,1.07508354]
[1770065830002,0.84386726,2326.6,2325.4,1.07508354]
[1770065830704,8.20805907,2326.6,2325.4,1.07508308]
[1770065830904,8.20805907,2326.6,2325.2,1.08812717]
[1770065831740,0.84386726,2326.6,2325.2,1.08812717]
[1770065832002,0.903,2326.9,2325.2,1.08812717]
[1770065832205,0.903,2326.9,2325.5,0.01295085]
[1770065832433,1.97739222,2326.9,2325.5,0.01295085]
[1770065832635,9.34159252,2326.9,2325.2,8.47114716]
[1770065832856,9.34159252,2326.9,2325.3,0.90576824]
[1770065833054,0.93415925,2326.8,2325.5,0.01295085]
[1770065833207,0.93415925,2326.8,2325.4,2.01407048]
[1770065833637,0.93415925,2326.8,2325.4,2.01507048]
[1770065835215,0.01295085,2326.5,2325.4,2.01507048]
[1770065836414,0.01295085,2326.5,2325.4,9.41104132]
[1770065836720,0.01295085,2326.5,2325.5,1.37113767]
[1770065836931,0.01295085,2326.2,2325.4,2.01507048]
[1770065837116,0.01295085,2326.5,2325.4,2.01507048]
[1770065837543,8.31130191,2326.8,2325.4,2.01507048]
[1770065837782,8.29835106,2326.8,2325.4,2.01507048]
[1770065838041,9.37279386,2326.8,2325.4,2.01507048]
[1770065838231,1.02757939,2326.7,2325.5,1.37113767]
[1770065838743,7.36419181,2326.6,2325.4,2.01507048]
[1770065838942,7.36419181,2326.6,2325.4,1.07608385]
[1770065839155,8.43874057,2326.6,2325.4,0.001]
[1770065843135,7.89228119,2326.0,2324.4,1.14961786]
[1770065843335,7.89228119,2325.8,2324.5,0.90782528]
[1770065843557,7.89228119,2325.6,2324.2,0.001]
[1770065843763,7.89228119,2325.6,2324.3,1.9843452]
[1770065843981,7.89228119,2325.6,2324.3,1.07558203]
[1770065844461,7.89228119,2325.6,2324.4,0.90998739]
[1770065844773,7.89228119,2325.6,2324.3,1.07558203]
[1770065845070,0.87889946,2325.5,2324.4,1.44788262]
[1770065845283,0.87889946,2325.5,2324.4,0.53789526]
[1770065845467,1.95396032,2325.5,2324.5,0.91131957]
[1770065845643,1.95396032,2325.5,2324.4,1.61340126]
[1770065845961,1.41462072,2325.4,2324.5,0.91131977]
[1770065846148,1.41462072,2325.4,2324.4,1.61340126]
[1770065846340,1.41462072,2325.4,2324.5,0.91166062]
[1770065846538,1.41462072,2325.4,2324.6,0.91166062]
[1770065846865,1.41462072,2325.4,2324.5,1.07545787]
[1770065847043,0.33685597,2325.3,2324.6,0.91284965]
[1770065847370,0.33685597,2325.3,2324.7,0.91565088]
[1770065847588,0.33685597,2325.3,2324.7,0.001]
[1770065847942,1.41462072,2325.4,2324.7,0.001]
[1770065848374,1.41462072,2325.4,2324.8,0.91651764]
[1770065848583,1.41462072,2325.4,2324.7,0.001]
[1770065848756,1.41462072,2325.4,2324.8,0.9165176]
[1770065849075,1.41462072,2325.4,2324.7,0.001]
[1770065849076,2.48972879,2325.4,2324.7,0.001]
[1770065849275,8.96738926,2325.4,2324.7,1.15061786]
[1770065849581,8.96738926,2325.4,2324.7,0.001]
[1770065849960,8.96738926,2325.4,2324.5,1.15061786]
[1770065849961,8.96738926,2325.4,2324.5,0.001]
[1770065850373,8.96738926,2325.4,2324.2,1.15061786]
[1770065850672,8.96750376,2325.1,2324.2,0.001]
[1770065852281,8.96750376,2325.1,2324.2,1.15061786]
[1770065853277,8.96750376,2325.1,2324.3,1.14961786]
[1770065853481,8.96750376,2325.1,2324.2,1.15061786]
[1770065854777,8.96750376,2325.1,2324.2,0.001]
[1770065855077,1.41703828,2325.0,2324.2,0.001]
[1770065855653,1.07531506,2324.9,2324.2,1.15061786]
[1770065855854,1.07531506,2324.9,2324.2,0.001]
[1770065856185,1.07531506,2324.9,2324.2,1.15061786]
[1770065856488,1.41703828,2325.0,2324.2,0.001]
[1770065856703,1.41703828,2325.0,2324.2,2.2262442]
[1770065856881,1.0752228,2325.1,2324.3,0.3759068]
[1770065857070,1.0752228,2325.1,2324.2,1.15061786]
[1770065857071,8.96750399,2325.1,2324.2,1.15061786]
[1770065857397,0.902,2325.2,2324.2,2.22622753]
[1770065857580,1.97718348,2325.2,2324.2,2.22622753]
[1770065858513,1.97718348,2325.2,2324.2,1.15061786]
[1770065858709,0.62777076,2325.1,2324.2,0.80719556]
[1770065858995,7.89228119,2325.4,2324.2,0.80719556]
[1770065858996,7.89228119,2325.9,2324.7,1.14961786]
[1770065859507,7.89228119,2325.9,2324.8,1.14961786]
[1770065860572,7.89228119,2325.9,2324.8,2.22495027]
[1770065860773,0.902,2326.0,2325.1,1.14961786]
[1770065860975,0.01295085,2326.5,2325.0,8.25717204]
[1770065860976,1.02757939,2326.7,2325.4,1.14961786]
[1770065861179,8.96674864,2326.8,2325.6,1.14961786]
[1770065861366,8.96672214,2326.8,2325.7,0.92187005]
[1770065861572,1.07436433,2327.0,2325.8,0.92187005]
[1770065861768,1.07436433,2327.0,2325.9,0.92187005]
[1770065862002,9.30887609,2326.9,2326.0,0.92187005]
[1770065862298,9.30887609,2326.9,2325.7,1.14961786]
[1770065862502,9.30887609,2326.9,2325.8,0.92185943]
[1770065862701,9.30887609,2326.9,2325.9,0.92185943]
[1770065862702,1.4165949,2326.9,2325.9,0.92185943]
[1770065862904,1.0743811,2327.0,2326.0,0.92185943]
[1770065863103,1.0743811,2327.0,2326.1,0.92185943]
[1770065863270,1.0743811,2327.0,2325.8,2.22451367]
[1770065863476,1.0743811,2327.0,2325.9,0.9217841]
[1770065863676,0.0011,2327.2,2326.3,8.25717204]
[1770065863978,0.0011,2327.2,2326.4,3.01208095]
[1770065864327,0.0011,2327.2,2326.5,0.9217841]
[1770065864471,0.0011,2327.2,2326.6,0.9217841]
[1770065864676,0.0011,2327.2,2326.2,1.14961786]
[1770065865007,0.0011,2327.2,2326.3,0.92124017]
[1770065865167,0.0011,2327.2,2326.2,1.14961786]
[1770065865168,0.0011,2327.2,2326.4,0.92124017]
[1770065865372,0.0011,2327.2,2326.1,1.14961786]
[1770065865373,0.0011,2327.2,2326.1,2.22435143]
[1770065865608,0.0011,2327.2,2326.2,2.55237788]
[1770065865908,0.0011,2327.2,2326.3,0.92102198]
[1770065866076,0.0011,2327.2,2326.4,0.92102198]
[1770065866280,0.0011,2327.2,2326.0,2.22440291]
[1770065866486,0.0011,2327.2,2326.1,2.0704049]
[1770065866779,0.0011,2327.2,2326.2,1.23530604]
[1770065866780,7.89338119,2327.2,2326.2,1.23530604]
[1770065867105,7.89228119,2327.0,2325.7,1.14961786]
[1770065867309,7.89228119,2327.0,2325.6,1.14961786]
[1770065867604,7.89228119,2327.0,2325.6,2.22457661]
[1770065867779,7.89228119,2327.0,2325.7,1.07494161]
[1770065867978,0.902,2327.1,2325.9,4.29930579]
[1770065868197,0.902,2327.1,2326.0,1.14961786]
[1770065868198,8.79428119,2327.1,2326.0,1.14961786]
[1770065868398,8.79428119,2327.1,2325.9,2.2244444]
[1770065868809,1.07434464,2327.0,2325.9,2.2244444]
[1770065869215,9.86861184,2327.1,2325.9,2.2244444]
[1770065869420,11.28529163,2327.1,2326.0,0.67464127]
[1770065870300,11.28529163,2327.1,2325.8,2.44697274]
[1770065870708,1.07439082,2326.9,2325.8,0.22245595]
[1770065871320,1.07439082,2326.9,2325.7,2.22454361]
[1770065871321,0.0011,2326.7,2325.7,1.14961786]
[1770065871719,0.0011,2326.7,2325.7,2.22455552]
[1770065872030,0.0011,2326.7,2325.4,1.14961786]
[1770065872031,9.63093091,2326.7,2325.4,1.14961786]
[1770065872187,9.62983091,2326.5,2325.1,1.14961786]
[1770065872387,9.62983091,2326.3,2325.1,0.37576921]
[1770065872613,9.62983091,2326.3,2324.8,11.67873388]
[1770065872614,10.53183091,2326.3,2324.9,2.22492473]
[1770065872817,1.07471412,2326.2,2324.9,1.07530687]
[1770065873002,9.62983091,2326.0,2324.7,1.14961786]
[1770065873192,9.62983091,2326.0,2324.6,1.14961786]
[1770065873400,9.62983091,2326.0,2324.5,1.07549856]
[1770065873401,9.62983091,2326.0,2324.5,1.14961786]
[1770065873620,9.62983091,2325.8,2324.4,2.22615392]
[1770065873820,9.62983091,2325.8,2324.4,0.001]
[1770065874789,1.07494517,2325.7,2324.4,0.001]
[1770065874990,9.62983091,2325.4,2324.4,0.001]
[1770065875300,10.53183091,2325.4,2324.4,0.001]
[1770065875499,10.683014,2325.3,2324.4,0.001]
[1770065876240,9.62983091,2325.1,2324.1,0.001]
[1770065877115,10.70509972,2325.0,2324.1,0.001]
[1770065880528,10.70509972,2325.0,2323.5,0.001]
[1770065880704,10.70509972,2325.0,2323.5,9.24491006]
[1770065880906,15.7056707,2325.4,2323.5,9.24491006]
[1770065880907,0.97593394,2325.9,2323.7,9.34631006]
[1770065881163,10.70453554,2326.3,2325.0,0.01295085]
[1770065881437,4.29911272,2326.7,2325.4,0.01295085]
[1770065881438,1.07452935,2326.6,2325.4,0.01295085]
[1770065881645,1.50034954,2326.5,2325.0,10.33212432]
[1770065881834,1.50034954,2326.5,2325.4,0.01295085]
[1770065882418,1.07558633,2326.7,2325.4,9.24391006]
[1770065882624,0.0011,2326.7,2325.5,0.01295085]
[1770065882820,0.0011,2326.7,2325.6,0.91921336]
[1770065883138,0.0011,2326.7,2325.6,0.01295085]
[1770065883341,0.0011,2326.7,2325.7,1.07494517]
[1770065883542,9.63093091,2326.7,2325.2,1.07514061]
[1770065883861,9.63093091,2326.7,2325.1,1.075189]
[1770065883862,9.62983091,2326.6,2325.1,1.075189]
[1770065884150,9.62983091,2326.6,2325.0,1.07523567]
[1770065884355,9.62983091,2326.6,2325.1,0.91974966]
[1770065884521,9.62983091,2326.6,2325.0,1.07526617]
[1770065884724,10.684224,2326.5,2325.1,1.46204334]
[1770065885028,10.684224,2326.5,2325.5,0.001]
[1770065885225,1.07462173,2326.4,2325.5,0.001]
[1770065885827,9.62983091,2326.0,2324.6,0.001]
[1770065886047,9.62983091,2325.8,2324.6,0.001]
[1770065886642,2.00300264,2325.9,2324.8,1.07533176]
[1770065886843,0.902,2326.2,2324.7,0.01295085]
[1770065887043,10.53183091,2326.2,2324.6,1.07642447]
[1770065887437,1.07476032,2326.1,2324.6,0.001]
[1770065888038,1.07476032,2326.1,2324.7,0.93351427]
[1770065888237,1.07476032,2326.1,2324.8,0.92056342]
[1770065888439,1.59056325,2326.0,2324.8,0.92056342]
[1770065889168,1.59056325,2326.0,2324.7,0.01295085]
[1770065889465,1.59056325,2326.0,2324.8,0.92090025]
[1770065889654,1.07485274,2325.9,2324.8,1.07536016]
[1770065890066,0.902,2326.2,2325.0,0.01295085]
[1770065890265,0.902,2326.2,2325.3,0.01295085]
[1770065890434,0.62752545,2326.2,2325.0,9.25686091]
[1770065890633,1.07468559,2326.3,2325.1,0.92083091]
[1770065890847,1.05439309,2326.5,2325.3,0.01295085]
[1770065891056,1.07568397,2326.5,2325.4,10.16472746]
[1770065891340,1.07568397,2326.5,2325.0,10.39352792]
[1770065891550,1.07568397,2326.5,2325.1,0.93370985]
[1770065891769,0.0011,2326.5,2325.3,1.07513009]
[1770065891941,0.0011,2326.5,2325.2,0.920759]
[1770065891942,0.0011,2326.5,2325.2,1.0751509]
[1770065892138,1.82396353,2326.5,2325.3,0.53888455]
[1770065893064,11.45379444,2326.5,2325.3,0.53888455]
[1770065893266,11.45379444,2326.5,2325.0,10.31914998]
[1770065893466,11.45379444,2326.5,2325.1,0.92093028]
[1770065893668,11.45379444,2326.5,2325.2,0.92093028]
[1770065893869,1.07462173,2326.4,2325.0,9.24391006]
[1770065894069,1.68269031,2326.3,2325.1,2.06781509]
[1770065894242,1.68269031,2326.3,2325.2,0.92093092]
[1770065895154,1.68269031,2326.3,2325.2,1.99610724]
[1770065895360,1.68269031,2326.3,2325.2,1.07517632]
[1770065895561,1.68269031,2326.3,2325.1,5.44775667]
[1770065895562,1.68269031,2326.3,2325.1,2.22207535]
[1770065895756,0.2757312,2326.2,2325.2,2.49834759]
[1770065895962,1.35045408,2326.2,2325.2,2.65186932]
[1770065896377,1.35045408,2326.2,2325.3,0.92205323]
[1770065896579,1.35045408,2326.2,2325.2,2.65186932]
[1770065896891,0.2757312,2326.2,2325.3,0.92205289]
[1770065897071,2.75737828,2326.3,2325.2,2.65186932]
[1770065897072,1.68269031,2326.3,2325.4,0.35739222]
[1770065897242,0.0011,2326.1,2325.4,0.35739222]
[1770065899780,0.0011,2326.1,2325.2,1.57670326]
[1770065900075,0.0011,2326.1,2325.0,1.07626478]
[1770065900371,0.0011,2326.1,2325.1,0.92304954]
[1770065900671,0.0011,2326.1,2325.2,0.92304954]
[1770065900869,0.0011,2326.1,2325.0,0.001]
[1770065901072,0.0011,2326.1,2325.1,0.92320532]
[1770065901275,0.0011,2326.1,2325.0,0.001]
[1770065901472,0.0011,2326.1,2325.1,0.92352353]
[1770065901694,0.0011,2326.1,2325.0,0.001]
[1770065901979,0.0011,2326.1,2325.1,0.92352253]
[1770065902146,0.0011,2326.1,2325.0,0.001]
[1770065902478,0.0011,2326.1,2325.1,0.92347217]
[1770065902658,0.0011,2326.1,2325.0,0.22359272]
[1770065902858,0.0011,2326.1,2325.1,0.9235892]
[1770065903059,0.0011,2326.1,2325.0,0.22359272]
[1770065903060,0.902,2326.0,2325.0,0.001]
[1770065903354,10.62035738,2325.9,2325.0,0.001]
[1770065903569,1.15223574,2325.8,2325.0,0.001]
[1770065904187,1.07494517,2325.7,2325.0,0.001]
[1770065905894,1.07494517,2325.7,2324.6,0.001]
[1770065905895,11.69530255,2325.7,2324.6,0.001]
[1770065907561,11.69530255,2325.7,2324.7,0.92493125]
[1770065907767,11.69530255,2325.7,2324.6,0.001]
[1770065907768,1.7147136,2325.6,2324.6,0.001]
[1770065907995,1.7147136,2325.6,2324.7,0.92493148]
[1770065908167,1.7147136,2325.6,2324.8,0.92571059]
[1770065908368,1.7147136,2325.6,2324.6,0.001]
[1770065908369,1.07503762,2325.5,2324.6,0.001]
[1770065908600,1.07503762,2325.5,2324.7,0.92569196]
[1770065908800,0.27897512,2325.4,2324.8,0.92569196]
[1770065908996,0.27897512,2325.4,2324.6,0.001]
[1770065909185,0.27897512,2325.4,2324.7,0.92569223]
[1770065909371,0.27897512,2325.4,2324.6,1.15647234]
[1770065909372,0.27897512,2325.4,2324.8,0.92569223]
[1770065909572,0.27897512,2325.4,2324.6,1.15647234]
[1770065909775,0.27897512,2325.4,2324.7,0.92661825]
[1770065909974,0.27897512,2325.4,2324.8,0.92661825]
[1770065910299,1.35407684,2325.4,2324.6,0.001]
[1770065910602,1.35407684,2325.4,2324.7,0.92656024]
[1770065910799,1.35407684,2325.4,2324.8,0.92656024]
[1770065910800,0.27897512,2325.4,2324.8,0.92656024]
[1770065910980,1.62747696,2325.3,2324.6,0.001]
[1770065911175,0.27897512,2325.4,2324.9,0.001]
[1770065911377,11.69539662,2325.5,2324.6,0.001]
[1770065912198,10.62035738,2325.3,2324.1,0.902]
[1770065912404,10.62035738,2325.3,2324.2,0.92624253]
[1770065912405,1.07517632,2325.2,2324.2,0.92624253]
[1770065912700,1.07517632,2325.2,2323.8,1.15547234]
[1770065912701,11.6955337,2325.2,2323.8,1.15547234]
[1770065912900,11.6955337,2325.2,2323.7,1.15647234]
[1770065913113,10.62035738,2325.0,2323.8,1.07582252]
[1770065913302,10.62035738,2325.0,2323.7,4.13975199]
[1770065914416,1.07531506,2324.9,2323.7,2.98427965]
[1770065914611,11.69567244,2324.9,2323.7,0.001]
[1770065915585,11.69567244,2324.9,2322.9,0.1024]
[1770065915791,11.69567244,2324.9,2321.2,0.01295085]
[1770065915792,0.01295085,2322.3,2321.3,10.10315642]
[1770065916009,9.61076977,2323.2,2321.3,10.10315642]
[1770065916010,9.61076977,2323.2,2321.7,10.11510727]
[1770065916316,0.902,2323.0,2321.8,11.126618]
[1770065916516,0.91849185,2322.9,2322.0,1.0766309]
[1770065916739,0.91849185,2322.9,2321.9,4.30677904]
[1770065916740,0.902,2323.0,2322.1,1.08954753]
[1770065917016,0.91579358,2322.9,2321.9,11.17883603]
[1770065917185,0.902,2323.0,2322.1,1.07660686]
[1770065917385,0.902,2323.0,2322.2,0.53831057]
[1770065917710,0.902,2323.0,2322.1,1.08955656]
[1770065918015,0.902,2323.0,2322.1,11.19171298]
[1770065918419,0.902,2323.0,2322.1,10.10215642]
[1770065918715,0.902,2323.0,2322.1,11.17876581]